[Event "26th Hit Open-A 2022"]
[Site "Nova Gorica"]
[Date "2022.09.18"]
[Round "4.15"]
[White "Pavlovic, Milos"]
[Black "Saypuri Srithan"]
[Result "1-0"]
[ECO "A38"]
[WhiteElo "2468"]
[BlackElo "2199"]
[Annotator "ChessBase"]
[PlyCount "111"]
[EventDate "2022.09.16"]
[EventType "swiss"]
[EventCountry "SLO"]
[SourceTitle "playchess.com"]
[Source "ChessBase"]
[SourceQuality "1"]
[TimeControl "5400+30"]

1. Nf3 {[%emt 0:00:23]} Nf6 {[%emt 0:00:19]} 2. c4 {[%emt 0:01:18]} g6 {[%emt 0:00:44]} 3. g3 {[%emt 0:00:12]} Bg7 {[%emt 0:00:06]} 4. Bg2 {[%emt 0:00:05]} O-O {[%emt 0:00:16]} 5. O-O {[%emt 0:00:08]} d6 {[%emt 0:00:04]} 6. Nc3 {[%emt 0:00:09]} c5 {[%emt 0:00:09]} 7. d3 {[%emt 0:02:58]} Nc6 {[%emt 0:00:13]} 8. Rb1 {[%emt 0:00:12]} Rb8 {[%emt 0:01:55]} 9. Bd2 {[%emt 0:02:05]} Bd7 {[%emt 0:05:58]} 10. Ne1 {[%emt 0:02:45]} Ne8 {[%emt 0:03:32]} 11. Nc2 {[%emt 0:04:01]} a5 {[%emt 0:11:00]} 12. a3 {[%emt 0:07:28]} Nc7 {[%emt 0:01:01]} 13. b4 {[%emt 0:01:33]} axb4 {[%emt 0:02:06]} 14. axb4 {[%emt 0:00:06]} cxb4 {[%emt 0:00:51]} 15. Nxb4 {[%emt 0:00:12]} Nxb4 {[%emt 0:02:23]} 16. Rxb4 {[%emt 0:00:52]} b5 {[%emt 0:00:04]} 17. cxb5 {[%emt 0:00:06]} Nxb5 {[%emt 0:02:29]} 18. Nxb5 {[%emt 0:00:30]} Rxb5 {[%emt 0:09:15]} 19. Rxb5 {[%emt 0:08:37]} Bxb5 {[%emt 0:00:04]} 20. Qb3 {[%emt 0:00:06]} Bd7 {[%emt 0:13:06]} 21. Rc1 {[%emt 0:02:13]} Qb8 {[%emt 0:13:36]} 22. Qb7 {[%emt 0:01:20]} Bg4 {[%emt 0:09:58]} 23. Qxe7 {[%emt 0:39:15]} Re8 {[%emt 0:01:19]} 24. Qh4 {[%emt 0:02:36]} Bxe2 {[%emt 0:00:54]} 25. Qc4 {[%emt 0:00:04]} h5 {[%emt 0:13:39]} 26. Bd5 {[%emt 0:02:29]} Qa7 {[%emt 0:00:35]} 27. Qc7 {[%emt 0:11:49]} Qxc7 {[%emt 0:00:58]} 28. Rxc7 {[%emt 0:00:03]} Rf8 {[%emt 0:00:23]} 29. Bb4 {[%emt 0:03:19]} Be5 {[%emt 0:02:22]} 30. f4 {[%emt 0:02:21]} Bd4+ {[%emt 0:00:41]} 31. Kg2 {[%emt 0:00:01]} Bb6 {[%emt 0:03:06]} 32. Rc6 {[%emt 0:01:48]} Bc5 {[%emt 0:00:21]} 33. Bxc5 {[%emt 0:00:25]} dxc5 {[%emt 0:00:04]} 34. Rxg6+ {[%emt 0:00:37]} Kh7 {[%emt 0:00:25]} 35. Rg5 {[%emt 0:00:47]} Bxd3 {[%emt 0:02:38]} 36. Rxh5+ {[%emt 0:00:09]} Kg6 {[%emt 0:00:03]} 37. Re5 {[%emt 0:01:37]} c4 {[%emt 0:00:21]} 38. Be4+ {[%emt 0:01:24]} Bxe4+ {[%emt 0:00:23]} 39. Rxe4 {[%emt 0:00:01]} Rc8 {[%emt 0:00:04]} 40. Re2 {[%emt 0:00:08]} c3 {[%emt 0:00:54]} 41. Rc2 {[%emt 0:00:02]} f5 {[%emt 0:00:53]} 42. Kf3 {[%emt 0:00:14]} Kh5 {[%emt 0:00:21]} 43. h3 {[%emt 0:00:06]} Kg6 {[%emt 0:00:07]} 44. Ke3 {[%emt 0:00:40]} Rh8 {[%emt 0:01:03]} 45. Rxc3 {[%emt 0:03:05]} Rxh3 {[%emt 0:00:05]} 46. Kd4 {[%emt 0:00:02]} Kh5 {[%emt 0:00:57]} 47. Ke5 {[%emt 0:01:04]} Kg4 {[%emt 0:00:17]} 48. Rc8 {[%emt 0:00:08]} Rh7 {[%emt 0:01:23]} 49. Rg8+ {[%emt 0:00:06]} Kh5 {[%emt 0:00:50]} 50. Rg5+ {[%emt 0:00:35]} Kh6 {[%emt 0:00:00]} 51. Kxf5 {[%emt 0:00:27]} Rf7+ {[%emt 0:00:00]} 52. Kg4 {[%emt 0:00:02]} Ra7 {[%emt 0:00:00]} 53. Rb5 {[%emt 0:00:11]} Ra6 {[%emt 0:00:00]} 54. Kh4 {[%emt 0:00:11]} Ra1 {[%emt 0:00:04]} 55. Rb6+ {[%emt 0:00:05]} Kg7 {[%emt 0:00:04]} 56. Kg5 {[%emt 0:00:04]} 1-0

[Event "26th Hit Open-A 2022"]
[Site "Nova Gorica"]
[Date "2022.09.18"]
[Round "4.16"]
[White "Thavandiran, Shiyam"]
[Black "Centrih, Aleks"]
[Result "1-0"]
[ECO "C47"]
[WhiteElo "2363"]
[BlackElo "2095"]
[Annotator "ChessBase"]
[PlyCount "85"]
[EventDate "2022.09.16"]
[EventType "swiss"]
[EventCountry "SLO"]
[SourceTitle "playchess.com"]
[Source "ChessBase"]
[SourceQuality "1"]
[TimeControl "5400+30"]

1. e4 {[%emt 0:08:08]} e5 {[%emt 0:00:07]} 2. Nf3 {[%emt 0:00:29]} Nc6 {[%emt 0:00:07]} 3. Nc3 {[%emt 0:00:30]} Nf6 {[%emt 0:00:08]} 4. h3 {[%emt 0:00:18]} Bb4 {[%emt 0:00:10]} 5. Bd3 {[%emt 0:01:07]} d6 {[%emt 0:01:01]} 6. O-O {[%emt 0:01:33]} O-O {[%emt 0:03:02]} 7. a3 {[%emt 0:01:16]} Ba5 {[%emt 0:01:57]} 8. b4 {[%emt 0:01:19]} Bb6 {[%emt 0:00:06]} 9. Na4 {[%emt 0:00:10]} Ne7 {[%emt 0:02:56]} 10. Re1 {[%emt 0:11:24]} Ng6 {[%emt 0:03:13]} 11. Bb2 {[%emt 0:09:37]} Re8 {[%emt 0:03:27]} 12. Bf1 {[%emt 0:03:14]} Bd7 {[%emt 0:26:21]} 13. Nxb6 {[%emt 0:05:59]} axb6 {[%emt 0:00:07]} 14. d3 {[%emt 0:16:05]} h6 {[%emt 0:02:30]} 15. g3 {[%emt 0:07:22]} c5 {[%emt 0:14:58]} 16. Bg2 {[%emt 0:02:05]} Qc7 {[%emt 0:02:31]} 17. Nd2 {[%emt 0:07:38]} Bc6 {[%emt 0:05:15]} 18. c4 {[%emt 0:08:57]} b5 {[%emt 0:09:06]} 19. Qc2 {[%emt 0:06:11]} b6 {[%emt 0:00:47]} 20. cxb5 {[%emt 0:00:42]} Bxb5 {[%emt 0:00:07]} 21. a4 {[%emt 0:00:08]} Bc6 {[%emt 0:04:43]} 22. d4 {[%emt 0:05:18]} exd4 {[%emt 0:05:07]} 23. b5 {[%emt 0:00:02]} Bb7 {[%emt 0:03:39]} 24. Bxd4 {[%emt 0:00:03]} Qd8 {[%emt 0:00:53]} 25. Bb2 {[%emt 0:00:20]} Qc7 {[%emt 0:03:12]} 26. Bxf6 {[%emt 0:02:27]} gxf6 {[%emt 0:00:05]} 27. Nc4 {[%emt 0:00:11]} Ne7 {[%emt 0:06:01]} 28. Qd2 {[%emt 0:00:17]} Rad8 {[%emt 0:01:24]} 29. Qxh6 {[%emt 0:00:32]} d5 {[%emt 0:01:08]} 30. e5 {[%emt 0:01:28]} f5 {[%emt 0:00:46]} 31. Nd6 {[%emt 0:00:16]} Bc8 {[%emt 0:00:27]} 32. Qg5+ {[%emt 0:00:31]} Ng6 {[%emt 0:00:18]} 33. Bxd5 {[%emt 0:00:27]} Be6 {[%emt 0:00:28]} 34. Nxe8 {[%emt 0:00:39]} Rxe8 {[%emt 0:00:10]} 35. Bxe6 {[%emt 0:00:30]} Rxe6 {[%emt 0:00:05]} 36. Qxf5 {[%emt 0:00:26]} Nxe5 {[%emt 0:00:49]} 37. Re4 {[%emt 0:00:24]} Qe7 {[%emt 0:00:45]} 38. Rae1 {[%emt 0:00:11]} f6 {[%emt 0:00:17]} 39. f4 {[%emt 0:00:53]} Nf3+ {[%emt 0:00:40]} 40. Kf2 {[%emt 0:00:20]} Nxe1 {[%emt 0:01:02]} 41. Qxe6+ {[%emt 0:00:05]} Qxe6 {[%emt 0:00:07]} 42. Rxe6 {[%emt 0:00:04]} Nd3+ {[%emt 0:00:09]} 43. Ke2 {[%emt 0:00:22]} 1-0

[Event "26th Hit Open-A 2022"]
[Site "Nova Gorica"]
[Date "2022.09.18"]
[Round "4.17"]
[White "Rozman, Monika"]
[Black "Tisaj, Domen"]
[Result "0-1"]
[ECO "C49"]
[WhiteElo "2111"]
[BlackElo "2325"]
[Annotator "ChessBase"]
[PlyCount "52"]
[EventDate "2022.09.16"]
[EventType "swiss"]
[EventCountry "SLO"]
[SourceTitle "playchess.com"]
[Source "ChessBase"]
[SourceQuality "1"]
[TimeControl "5400+30"]

1. e4 {[%emt 0:00:04]} e5 {[%emt 0:01:11]} 2. Nc3 {[%emt 0:00:04]} Nf6 {[%emt 0:00:20]} 3. Nf3 {[%emt 0:00:03]} Nc6 {[%emt 0:01:28]} 4. Bb5 {[%emt 0:00:04]} Bb4 {[%emt 0:02:15]} 5. O-O {[%emt 0:00:36]} O-O {[%emt 0:01:12]} 6. Bxc6 {[%emt 0:01:11]} dxc6 {[%emt 0:05:21]} 7. d3 {[%emt 0:00:29]} Nd7 {[%emt 0:01:11]} 8. Ne2 {[%emt 0:00:40]} Re8 {[%emt 0:00:20]} 9. Ng3 {[%emt 0:02:25]} Nf8 {[%emt 0:01:24]} 10. Bg5 {[%emt 0:08:50]} f6 {[%emt 0:00:29]} 11. Be3 {[%emt 0:00:20]} Ne6 {[%emt 0:00:34]} 12. Nh4 {[%emt 0:07:02]} Bf8 {[%emt 0:01:11]} 13. Qh5 {[%emt 0:02:57]} Qe7 {[%emt 0:04:55]} 14. Nhf5 {[%emt 0:08:58]} Qf7 {[%emt 0:00:40]} 15. Qh4 {[%emt 0:00:11]} Kh8 {[%emt 0:02:09]} 16. Kh1 {[%emt 0:02:48]} c5 {[%emt 0:01:03]} 17. Rg1 {[%emt 0:01:11]} g6 {[%emt 0:09:44]} 18. Nh6 {[%emt 0:00:47]} Qg7 {[%emt 0:00:11]} 19. Nh5 {[%emt 0:04:38]} gxh5 {[%emt 0:02:11]} 20. g4 {[%emt 0:00:20]} Nf4 {[%emt 0:03:51]} 21. Bxf4 {[%emt 0:04:52]} exf4 {[%emt 0:00:44]} 22. Qxh5 {[%emt 0:00:33]} Qg6 {[%emt 0:01:15]} 23. Qxg6 {[%emt 0:04:01]} hxg6 {[%emt 0:00:06]} 24. g5 {[%emt 0:00:02]} Bxh6 {[%emt 0:00:23]} 25. gxh6 {[%emt 0:00:05]} Kh7 {[%emt 0:00:09]} 26. Rg2 {[%emt 0:00:26]} Bh3 {[%emt 0:00:13]} 0-1

[Event "26th Hit Open-A 2022"]
[Site "Nova Gorica"]
[Date "2022.09.18"]
[Round "4.18"]
[White "Lavrencic, Matic"]
[Black "Callsen, Niklas"]
[Result "1-0"]
[ECO "B55"]
[WhiteElo "2274"]
[BlackElo "2079"]
[Annotator "ChessBase"]
[PlyCount "81"]
[EventDate "2022.09.16"]
[EventType "swiss"]
[EventCountry "SLO"]
[SourceTitle "playchess.com"]
[Source "ChessBase"]
[SourceQuality "1"]
[TimeControl "5400+30"]

1. e4 {[%emt 0:00:03]} c5 {[%emt 0:01:12]} 2. Nf3 {[%emt 0:00:06]} d6 {[%emt 0:00:05]} 3. d4 {[%emt 0:01:17]} cxd4 {[%emt 0:00:04]} 4. Nxd4 {[%emt 0:00:06]} Nf6 {[%emt 0:00:04]} 5. f3 {[%emt 0:00:06]} e5 {[%emt 0:01:33]} 6. Nb3 {[%emt 0:00:10]} d5 {[%emt 0:05:43]} 7. Bg5 {[%emt 0:00:15]} d4 {[%emt 0:01:09]} 8. c3 {[%emt 0:00:53]} Nc6 {[%emt 0:03:30]} 9. cxd4 {[%emt 0:00:34]} Bb4+ {[%emt 0:07:45]} 10. Bd2 {[%emt 0:00:14]} Nxe4 {[%emt 0:15:29]} 11. Bxb4 {[%emt 0:00:17]} Qh4+ {[%emt 0:01:20]} 12. g3 {[%emt 0:00:07]} Nxg3 {[%emt 0:00:07]} 13. hxg3 {[%emt 0:00:03]} Qxh1 {[%emt 0:00:12]} 14. Ba3 {[%emt 0:00:49]} Qg1 {[%emt 0:09:43]} 15. Qe2 {[%emt 0:05:10]} Qxg3+ {[%emt 0:00:29]} 16. Qf2 {[%emt 0:00:07]} Qxf2+ {[%emt 0:03:32]} 17. Kxf2 {[%emt 0:00:15]} exd4 {[%emt 0:03:47]} 18. N1d2 {[%emt 0:00:41]} Be6 {[%emt 0:08:16]} 19. Nc5 {[%emt 0:01:03]} O-O-O {[%emt 0:00:35]} 20. Nxe6 {[%emt 0:00:30]} fxe6 {[%emt 0:00:07]} 21. Bh3 {[%emt 0:00:26]} b5 {[%emt 0:06:06]} 22. Bxe6+ {[%emt 0:03:32]} Kb7 {[%emt 0:00:17]} 23. Bc5 {[%emt 0:06:24]} g6 {[%emt 0:02:57]} 24. Re1 {[%emt 0:02:49]} Rhe8 {[%emt 0:01:46]} 25. Re4 {[%emt 0:02:44]} a5 {[%emt 0:01:14]} 26. a3 {[%emt 0:01:59]} h5 {[%emt 0:02:10]} 27. Ke2 {[%emt 0:04:14]} g5 {[%emt 0:03:02]} 28. Kf2 {[%emt 0:06:29]} d3 {[%emt 0:08:46]} 29. b3 {[%emt 0:03:21]} Kc7 {[%emt 0:04:00]} 30. Ke3 {[%emt 0:04:45]} Kb7 {[%emt 0:03:54]} 31. Kf2 {[%emt 0:02:08]} Kc7 {[%emt 0:00:08]} 32. Kg3 {[%emt 0:00:23]} Kb7 {[%emt 0:01:18]} 33. Be3 {[%emt 0:00:39]} g4 {[%emt 0:03:24]} 34. f4 {[%emt 0:03:00]} Ne7 {[%emt 0:01:41]} 35. f5 {[%emt 0:01:53]} Rf8 {[%emt 0:00:06]} 36. Re5 {[%emt 0:01:06]} b4 {[%emt 0:02:17]} 37. axb4 {[%emt 0:04:19]} axb4 {[%emt 0:00:06]} 38. Rb5+ {[%emt 0:01:36]} Kc6 {[%emt 0:00:54]} 39. Rc5+ {[%emt 0:00:29]} Kb7 {[%emt 0:00:39]} 40. Bg5 {[%emt 0:01:12]} Rde8 {[%emt 0:00:28]} 41. Nc4 {[%emt 0:02:32]} 1-0

[Event "26th Hit Open-A 2022"]
[Site "Nova Gorica"]
[Date "2022.09.18"]
[Round "4.19"]
[White "Manish Anto Cristiano F"]
[Black "Bajo, Tin"]
[Result "1-0"]
[ECO "E05"]
[WhiteElo "2249"]
[BlackElo "1999"]
[Annotator "ChessBase"]
[PlyCount "105"]
[EventDate "2022.09.16"]
[EventType "swiss"]
[EventCountry "SLO"]
[SourceTitle "playchess.com"]
[Source "ChessBase"]
[SourceQuality "1"]
[TimeControl "5400+30"]

1. c4 {[%emt 0:00:02]} e6 {[%emt 0:01:16]} 2. d4 {[%emt 0:00:32]} d5 {[%emt 0:00:06]} 3. Nf3 {[%emt 0:00:34]} Nf6 {[%emt 0:00:07]} 4. g3 {[%emt 0:00:28]} Be7 {[%emt 0:00:08]} 5. Bg2 {[%emt 0:00:15]} O-O {[%emt 0:00:09]} 6. O-O {[%emt 0:00:15]} dxc4 {[%emt 0:00:24]} 7. Qc2 {[%emt 0:00:19]} a6 {[%emt 0:00:18]} 8. a4 {[%emt 0:00:10]} Bd7 {[%emt 0:00:27]} 9. Qxc4 {[%emt 0:00:12]} Bc6 {[%emt 0:00:06]} 10. Nc3 {[%emt 0:01:43]} b5 {[%emt 0:06:06]} 11. Qd3 {[%emt 0:00:17]} b4 {[%emt 0:00:08]} 12. Nb1 {[%emt 0:00:07]} Be4 {[%emt 0:01:52]} 13. Qd1 {[%emt 0:00:36]} Nbd7 {[%emt 0:05:36]} 14. Nbd2 {[%emt 0:00:22]} Bb7 {[%emt 0:00:10]} 15. Nc4 {[%emt 0:00:10]} c5 {[%emt 0:01:05]} 16. Bf4 {[%emt 0:01:10]} Nb6 {[%emt 0:05:35]} 17. Na5 {[%emt 0:03:56]} Bd5 {[%emt 0:07:27]} 18. dxc5 {[%emt 0:03:07]} Bxc5 {[%emt 0:02:18]} 19. Ne5 {[%emt 0:05:22]} Bxg2 {[%emt 0:03:53]} 20. Kxg2 {[%emt 0:00:16]} Nbd5 {[%emt 0:02:38]} 21. Nb7 {[%emt 0:04:21]} Nxf4+ {[%emt 0:01:32]} 22. gxf4 {[%emt 0:05:13]} Qb6 {[%emt 0:01:26]} 23. Nxc5 {[%emt 0:00:33]} Qxc5 {[%emt 0:00:06]} 24. Rc1 {[%emt 0:00:11]} Qb6 {[%emt 0:08:10]} 25. Qb3 {[%emt 0:07:53]} Rfc8 {[%emt 0:08:19]} 26. h3 {[%emt 0:14:01]} a5 {[%emt 0:03:37]} 27. Rfd1 {[%emt 0:13:06]} h6 {[%emt 0:02:55]} 28. Qf3 {[%emt 0:03:45]} Qa6 {[%emt 0:07:36]} 29. Nc6 {[%emt 0:04:02]} Qb7 {[%emt 0:04:42]} 30. Rc5 {[%emt 0:02:19]} Nd5 {[%emt 0:03:49]} 31. Rdc1 {[%emt 0:00:25]} Rc7 {[%emt 0:05:13]} 32. e4 {[%emt 0:08:59]} Nf6 {[%emt 0:05:38]} 33. Rb5 {[%emt 0:02:27]} Qa6 {[%emt 0:02:02]} 34. Nxb4 {[%emt 0:03:55]} Qxb5 {[%emt 0:07:41]} 35. axb5 {[%emt 0:01:07]} Rxc1 {[%emt 0:00:07]} 36. Nc6 {[%emt 0:03:05]} Rc5 {[%emt 0:03:54]} 37. Qd3 {[%emt 0:00:36]} Kh8 {[%emt 0:00:25]} 38. Ne5 {[%emt 0:01:37]} Kg8 {[%emt 0:01:50]} 39. b6 {[%emt 0:00:16]} Rb8 {[%emt 0:00:11]} 40. Qd6 {[%emt 0:01:34]} Rcc8 {[%emt 0:00:07]} 41. Nc6 {[%emt 0:01:05]} Nxe4 {[%emt 0:00:44]} 42. Qe5 {[%emt 0:00:02]} Rb7 {[%emt 0:01:05]} 43. Qxe4 {[%emt 0:00:03]} Kh8 {[%emt 0:00:30]} 44. Ne5 {[%emt 0:01:23]} Rxb6 {[%emt 0:00:11]} 45. Nxf7+ {[%emt 0:00:10]} Kg8 {[%emt 0:00:06]} 46. Qg6 {[%emt 0:00:09]} Kf8 {[%emt 0:00:51]} 47. Ne5 {[%emt 0:00:11]} Rc7 {[%emt 0:00:08]} 48. f5 {[%emt 0:00:32]} Rb5 {[%emt 0:00:43]} 49. Qxe6 {[%emt 0:00:11]} g5 {[%emt 0:00:55]} 50. Qd6+ {[%emt 0:00:18]} Re7 {[%emt 0:00:13]} 51. Qd8+ {[%emt 0:00:10]} Re8 {[%emt 0:00:14]} 52. Qf6+ {[%emt 0:00:07]} Kg8 {[%emt 0:00:06]} 53. Qf7+ {[%emt 0:00:04]} 1-0

[Event "26th Hit Open-A 2022"]
[Site "Nova Gorica"]
[Date "2022.09.18"]
[Round "4.20"]
[White "Markocic, Tine"]
[Black "Ronka, Erik"]
[Result "1/2-1/2"]
[ECO "B32"]
[WhiteElo "2034"]
[BlackElo "2248"]
[Annotator "ChessBase"]
[PlyCount "71"]
[EventDate "2022.09.16"]
[EventType "swiss"]
[EventCountry "SLO"]
[SourceTitle "playchess.com"]
[Source "ChessBase"]
[SourceQuality "1"]
[TimeControl "5400+30"]

1. e4 {[%emt 0:02:00]} c5 {[%emt 0:00:11]} 2. Nf3 {[%emt 0:01:27]} e6 {[%emt 0:00:10]} 3. d4 {[%emt 0:00:21]} cxd4 {[%emt 0:00:07]} 4. Nxd4 {[%emt 0:00:05]} Nf6 {[%emt 0:00:08]} 5. Bd3 {[%emt 0:02:36]} Qb6 {[%emt 0:04:29]} 6. Nb3 {[%emt 0:01:30]} Nc6 {[%emt 0:01:40]} 7. Be3 {[%emt 0:02:43]} Qc7 {[%emt 0:05:07]} 8. f4 {[%emt 0:06:32]} d6 {[%emt 0:00:53]} 9. O-O {[%emt 0:04:20]} g6 {[%emt 0:01:00]} 10. f5 {[%emt 0:06:19]} Bg7 {[%emt 0:01:54]} 11. Nc3 {[%emt 0:01:42]} O-O {[%emt 0:24:06]} 12. Qd2 {[%emt 0:07:50]} Ne5 {[%emt 0:17:54]} 13. fxe6 {[%emt 0:05:26]} fxe6 {[%emt 0:01:33]} 14. Kh1 {[%emt 0:02:03]} Qe7 {[%emt 0:09:44]} 15. Be2 {[%emt 0:09:15]} Bd7 {[%emt 0:04:10]} 16. Rad1 {[%emt 0:03:17]} Nf7 {[%emt 0:03:15]} 17. e5 {[%emt 0:01:14]} Nxe5 {[%emt 0:04:18]} 18. Qxd6 {[%emt 0:00:08]} Qxd6 {[%emt 0:00:40]} 19. Rxd6 {[%emt 0:00:08]} Ne8 {[%emt 0:06:59]} 20. Rxf8+ {[%emt 0:00:26]} Bxf8 {[%emt 0:00:34]} 21. Rd1 {[%emt 0:00:39]} Bc6 {[%emt 0:02:52]} 22. Nd4 {[%emt 0:06:17]} Bb4 {[%emt 0:03:16]} 23. Nxc6 {[%emt 0:00:55]} Nxc6 {[%emt 0:00:12]} 24. Bc4 {[%emt 0:02:18]} Ng7 {[%emt 0:00:41]} 25. Ne4 {[%emt 0:01:38]} Rc8 {[%emt 0:02:38]} 26. Bh6 {[%emt 0:12:54]} Rd8 {[%emt 0:02:05]} 27. Rf1 {[%emt 0:04:23]} Be7 {[%emt 0:00:53]} 28. Bxg7 {[%emt 0:01:28]} Kxg7 {[%emt 0:00:02]} 29. Bxe6 {[%emt 0:00:09]} Ne5 {[%emt 0:01:05]} 30. c3 {[%emt 0:06:34]} Rd3 {[%emt 0:01:00]} 31. h3 {[%emt 0:01:20]} Re3 {[%emt 0:00:33]} 32. Bd5 {[%emt 0:00:10]} b6 {[%emt 0:00:21]} 33. Rd1 {[%emt 0:00:39]} Nd3 {[%emt 0:00:44]} 34. Rf1 {[%emt 0:00:44]} Ne5 {[%emt 0:01:02]} 35. Rd1 {[%emt 0:01:14]} Nd3 {[%emt 0:00:09]} 36. Rf1 {[%emt 0:00:05]} 1/2-1/2

[Event "26th Hit Open-A 2022"]
[Site "Nova Gorica"]
[Date "2022.09.18"]
[Round "4.21"]
[White "Walker, Samuel A"]
[Black "Zamar Kodelja, Jurij"]
[Result "0-1"]
[ECO "A59"]
[WhiteElo "2028"]
[BlackElo "2241"]
[Annotator "TA"]
[PlyCount "94"]
[EventDate "2022.09.16"]
[EventType "swiss"]
[EventCountry "SLO"]
[SourceTitle "playchess.com"]
[Source "ChessBase"]
[SourceQuality "1"]
[TimeControl "5400+30"]

{[%evp 21,94,81,76,71,70,66,86,85,88,75,90,86,77,65,103,98,93,77,94,98,147,108,135,146,185,37,153,167,200,189,292,262,293,289,285,-270,-258,-237,-220,-263,-216,-331,-328,-405,-393,-405,-401,-635,-652,-639,-619,-673,-430,-443,-437,-643,-632,-627,-613,-936,-936,-4702,-1069,-996,-932,-1011,-1119,-865,-852,-7115,-6250,-29984,-29985,-29985,-29986]} 1. d4 {[%emt 0:00:03]} Nf6 {[%emt 0:06:16]} 2. c4 {[%emt 0:00:09]} c5 {[%emt 0:00:22]} 3. d5 {[%emt 0:00:11]} b5 {[%emt 0:00:05]} 4. cxb5 {[%emt 0:00:12]} a6 {[%emt 0:00:06]} 5. bxa6 {[%emt 0:00:15]} g6 {[%emt 0:00:18]} 6. Nc3 {[%emt 0:00:20]} Bxa6 {[%emt 0:00:06]} 7. e4 {[%emt 0:00:15]} Bxf1 {[%emt 0:00:08]} 8. Kxf1 {[%emt 0:00:03]} d6 {[%emt 0:00:04]} 9. Nf3 {[%emt 0:00:23]} Bg7 {[%emt 0:00:08]} 10. g3 {[%emt 0:01:26]} O-O {[%emt 0:01:03]} 11. Kg2 {[%emt 0:00:31]} Nbd7 {[%emt 0:00:07]} 12. a4 {[%emt 0:16:10] is now debated instead of 12.Re1. A59: Benko/Volga Gambit: White castles by hand.} Qb6 {[%emt 0:01:44]} 13. Qe2 {[%emt 0:08:22]} Rfb8 {[%emt 0:02:54]} 14. Nb5 {[%emt 0:08:11] White is better.} Ne8 {[%emt 0:01:09]} 15. Ra3 {[%emt 0:03:28]} Nc7 {[%emt 0:01:32]} 16. Nxc7 {[%emt 0:01:30]} Qxc7 {[%emt 0:00:05]} 17. b3 $1 {[%emt 0:00:26]} Rb7 {[%emt 0:06:16]} 18. Qc2 {[%emt 0:05:42]} c4 {[%emt 0:03:03]} 19. Qxc4 {[%emt 0:04:30]} Qxc4 {[%emt 0:00:06]} 20. bxc4 {[%emt 0:00:03]} Rb4 {[%emt 0:01:09] [#]} (20... Rba7 $142) 21. a5 $146 {[%emt 0:01:13]} ({Predecessor:} 21. Bg5 f6 22. Be3 Rxc4 23. a5 Ra6 24. Rb1 Nc5 25. Nd2 Rc2 26. Rb6 Ra7 27. a6 Kf7 28. Bxc5 Rxc5 29. Rb7 Ra8 30. a7 Rcc8 31. Ra4 {1-0 (30) Stefansson,H (2514)-Sousa,L (2169) Lisbon 2019}) 21... Rxc4 {[%emt 0:00:11]} 22. Be3 {[%emt 0:06:38]} Nc5 {[%emt 0:00:52]} 23. Bxc5 {[%emt 0:09:08]} ({White should try} 23. Rb1 $18) 23... dxc5 {[%emt 0:00:59]} ({Better is} 23... Rxc5 $14 24. a6 Rb5) 24. e5 {[%emt 0:01:40]} Rb4 {[%emt 0:00:15]} 25. a6 {[%emt 0:05:44]} f6 {[%emt 0:00:21]} (25... g5 $142 26. d6 g4) 26. d6 $18 {[%emt 0:03:09]} fxe5 {[%emt 0:00:21]} 27. d7 {[%emt 0:00:55] Threatens to win with Rd1.} ({Weaker is} 27. dxe7 Kf7 $16) 27... e4 {[%emt 0:00:08]} 28. Rd1 $4 {[%emt 0:01:40][%mdl 8192]} (28. Ng5 $1 $18 Rd4 29. Rb1 Rxd7 30. Rb7 (30. Nxe4 Rda7 $16) 30... Rxb7 31. axb7) 28... exf3+ $19 {[%emt 0:00:25]} 29. Kxf3 {[%emt 0:06:59] [#]} Rbb8 {[%emt 0:00:18]} 30. Ke4 {[%emt 0:02:44]} e6 {[%emt 0:00:17]} 31. a7 {[%emt 0:01:36] [#]} (31. Rd6 {might work better.}) 31... Rd8 $1 {[%emt 0:00:05]} (31... Rb4+ 32. Kf3 Bf6 33. d8=Q+ Bxd8 34. Rxd8+ Rxd8 35. a8=Q Rb3+ 36. Ke2 Rb2+ 37. Ke3 Rxa8 38. Rxa8+ Kf7 39. Ra7+ Kg8 40. Ra8+ Kg7 41. Ra7+ Kh6 42. Rc7 $11) 32. Rd6 {[%emt 0:03:16]} Kf7 {[%emt 0:00:07]} 33. Raa6 {[%emt 0:00:30]} Bf8 {[%emt 0:00:44]} (33... Ke7 34. Rxe6+ Kf7 35. Red6 $17) 34. Ke5 {[%emt 0:03:43]} (34. Rd2 $142) 34... Bxd6+ {[%emt 0:02:26]} 35. Kxd6 {[%emt 0:00:05]} c4 {[%emt 0:00:04][%cal Bc5c4,Bc4c3][%mdl 32] ...c3 is the strong threat.} 36. Ra4 {[%emt 0:00:54]} c3 {[%emt 0:00:44]} 37. Rf4+ {[%emt 0:00:25]} Kg7 {[%emt 0:04:01]} 38. Ke7 {[%emt 0:00:10]} (38. Kc7 $142 Rxd7+ 39. Kxd7) 38... e5 {[%emt 0:00:46][%cal Be6e5,Be5e4][%mdl 32]} ({Stronger than} 38... Rxd7+ 39. Kxd7 Rxa7+ 40. Kd6 $17) 39. Rc4 {[%emt 0:00:34]} Rf8 {[%emt 0:00:07]} 40. Rxc3 {[%emt 0:00:33]} Rxa7 {[%emt 0:00:37]} 41. Rd3 {[%emt 0:00:53]} e4 {[%emt 0:06:26]} 42. Rd2 {[%emt 0:00:26]} Rf6 {[%emt 0:03:03] And now ...Raa6 would win.} 43. g4 {[%emt 0:01:46]} g5 {[%emt 0:00:14][%cal Bg6g5,Bg5h4][%mdl 32] aiming for ...Rf7+.} 44. Rd5 {[%emt 0:01:16]} h6 {[%emt 0:00:35]} 45. h4 {[%emt 0:02:11]} gxh4 {[%emt 0:00:18] ( -> ...Rf7+)} 46. g5 {[%emt 0:00:46]} Rf7+ {[%emt 0:00:08]} 47. Ke6 {[%emt 0:02:19] [#]} Raxd7 $3 {[%emt 0:00:07] What a bad dream for White.  Weighted Error Value: White=0.94/Black=0.42} 0-1